bitfinex/quotes_SOLUSD_20240925
["timestamp","ask_amount","ask_price","bid_price","bid_amount"]
[1727278352425,16.4815,151.69,151.6,6.5962]
[1727278353042,6.5953,151.63,151.59,12.8056]
[1727278353242,6.5953,151.63,151.55,0.1812058]
[1727278353243,1.64863608,151.66,151.55,6.5904058]
[1727278353555,17.23303699,151.66,151.55,6.5904058]
[1727278353725,15.5842,151.66,151.55,6.5904058]
[1727278354042,15.5842,151.66,151.57,16.4935]
[1727278354842,6.5946,151.64,151.59,6.5966]
[1727278355048,6.5946,151.64,151.6,0.87502095]
[1727278355231,15.5842,151.66,151.62,6.5952]
[1727278355433,22.178,151.66,151.61,23.085]
[1727278355630,15.5842,151.66,151.62,0.87477382]
[1727278355828,6.5941,151.65,151.62,0.87477382]
[1727278356025,6.5946,151.64,151.61,16.4892]
[1727278356239,6.5942,151.65,151.61,16.4892]
[1727278356450,6.5942,151.65,151.62,0.87477967]
[1727278356850,6.5942,151.65,151.61,16.4892]
[1727278357349,6.5946,151.64,151.61,16.4892]
[1727278357549,6.5946,151.64,151.6,6.5962]
[1727278358049,6.5942,151.65,151.6,6.5962]
[1727278358227,6.5937,151.66,151.62,6.5953]
[1727278358622,1.43320276,151.68,151.6,16.4902]
[1727278358819,6.5957,151.62,151.57,23.0909]
[1727278359023,50.0,151.69,151.56,20.0]
[1727278359024,6.5962,151.61,151.56,6.5979]
[1727278359223,6.5971,151.59,151.54,38.5373]
[1727278359646,6.5961,151.61,151.57,6.5975]
[1727278359851,6.5955,151.62,151.57,6.5975]
[1727278360038,6.5959,151.61,151.56,16.4946]
[1727278360360,6.597,151.59,151.55,0.1812058]
[1727278360728,6.5963,151.6,151.56,6.598]
[1727278361043,6.5963,151.6,151.55,6.7796058]
[1727278361238,6.598,151.56,151.55,0.1812058]
[1727278361447,16.4892,151.62,151.55,0.1812058]
[1727278361632,6.598,151.56,151.55,0.1812058]
[1727278361827,16.4913,151.6,151.55,0.1812058]
[1727278362134,6.5972,151.58,151.55,0.1812058]
[1727278363249,6.5968,151.59,151.55,0.1812058]
[1727278364475,6.5963,151.6,151.56,0.87625287]
[1727278364742,55.0302,151.66,151.56,0.87625287]
[1727278364743,6.5959,151.61,151.57,7.47330615]
[1727278365151,6.5956,151.62,151.57,7.47330615]
[1727278365340,6.5956,151.62,151.57,6.5975]
[1727278365959,15.6135,151.66,151.55,52.00622302]
[1727278366145,6.5945,151.65,151.6,6.5959]
[1727278366337,6.5945,151.65,151.6,16.4902]
[1727278366657,6.5942,151.65,151.61,7.47068408]
[1727278366844,6.5942,151.65,151.6,16.4902]
[1727278367040,6.5942,151.65,151.6,23.0863]
[1727278367233,16.4827,151.68,151.6,16.4902]
[1727278367558,6.5954,151.62,151.57,16.4935]
[1727278367727,6.5954,151.62,151.57,23.0909]
[1727278368127,6.5954,151.62,151.58,6.5971]
[1727278368348,6.5954,151.62,151.57,23.091]
[1727278368639,6.5964,151.6,151.57,16.4935]
[1727278369257,6.5967,151.59,151.55,13.3715058]
[1727278369462,6.5967,151.59,151.55,6.7732058]
[1727278370253,1.64914027,151.63,151.55,0.1812058]
[1727278370254,16.489,151.62,151.55,0.1812058]
[1727278370556,6.5977,151.57,151.55,0.1812058]
[1727278370966,7.97134291,151.63,151.55,0.1812058]
[1727278370967,6.598,151.56,151.55,0.1812058]
[1727278371172,6.598,151.56,151.55,0.307006]
[1727278375974,6.5976,151.57,151.55,0.307006]
[1727278376276,1.64954038,151.59,151.55,0.307006]
[1727278376277,6.598,151.56,151.55,0.307006]
[1727278380182,16.4913,151.6,151.55,0.307006]
[1727278380362,6.597,151.59,151.55,0.307006]
[1727278380556,1.64924263,151.58,151.55,0.307006]
[1727278380757,1.64944487,151.6,151.55,0.307006]
[1727278380985,6.598,151.56,151.55,0.307006]
[1727278381682,6.5977,151.57,151.55,0.307006]
[1727278381864,6.598,151.56,151.55,0.307006]
[1727278386283,6.5976,151.57,151.55,0.307006]
[1727278388862,8.24737851,151.56,151.55,0.307006]
[1727278389063,6.598,151.56,151.55,0.307006]
[1727278392965,8.24787802,151.56,151.55,0.307006]
[1727278393164,6.598,151.56,151.55,0.307006]
[1727278396602,8.24808963,151.56,151.55,0.307006]
[1727278397691,48.18157363,151.56,151.55,6e-06]
[1727278398195,24.40469628,151.56,151.55,6e-06]
[1727278398566,22.7546,151.56,151.55,6e-06]
[1727278398897,24.40455583,151.56,151.55,6e-06]
[1727278400294,48.18143983,151.56,151.55,6e-06]
[1727278401078,46.531484,151.56,151.55,6e-06]
[1727278401385,46.531484,151.56,151.51,0.2441548]
[1727278401386,6.5997,151.52,151.51,0.2441548]
[1727278402173,6.5997,151.52,151.51,5.48e-05]
[1727278402399,32.02727811,151.52,151.51,5.48e-05]
[1727278402604,32.02715891,151.52,151.51,5.48e-05]
[1727278402896,6.6019,151.47,151.46,0.4253606]
[1727278403279,8.25271234,151.47,151.46,0.4253606]
[1727278403803,6.6019,151.47,151.46,0.4253606]
[1727278404006,8.25273952,151.47,151.46,0.4253606]
[1727278404299,6.6019,151.47,151.46,0.4253606]
[1727278405992,6.6012,151.49,151.46,0.4253606]
[1727278406375,16.4988,151.53,151.46,0.4253606]
[1727278406570,55.85487064,151.56,151.47,0.87898391]
[1727278406772,6.6008,151.5,151.46,29.5542606]
[1727278407073,34.3024349,151.56,151.46,22.9519606]
[1727278407281,6.6003,151.51,151.46,29.5539606]
[1727278407478,34.3024349,151.56,151.46,29.5539606]
[1727278407479,17.8067349,151.56,151.46,22.9519606]
[1727278407686,6.6009,151.5,151.46,22.9519606]
[1727278408287,6.6011,151.49,151.46,22.9519606]
[1727278408492,6.6011,151.49,151.46,6.4468606]
[1727278408895,1.65021764,151.53,151.46,6.4468606]
[1727278409215,6.6009,151.5,151.46,13.0491606]
[1727278409808,6.6002,151.51,151.47,6.6018]
[1727278410811,6.6002,151.51,151.46,6.4468606]
[1727278411113,6.6002,151.51,151.46,13.0491606]
[1727278411300,1.65006983,151.53,151.46,6.4468606]
[1727278411703,6.6019,151.47,151.46,0.4253606]
[1727278416790,8.25280992,151.47,151.46,0.4253606]
[1727278417924,6.6019,151.47,151.46,0.4253606]
[1727278418622,8.25275544,151.47,151.46,0.4253606]
[1727278419509,6.6019,151.47,151.46,0.4253606]
[1727278419827,6.6037,151.43,151.42,0.2441548]
[1727278420201,6.6029,151.45,151.42,0.2441548]
[1727278420398,6.6032,151.44,151.42,0.2441548]
[1727278421505,1.65085759,151.47,151.42,0.2441548]
[1727278421723,6.6037,151.43,151.42,0.2441548]
[1727278425497,16.5056,151.47,151.42,0.2441548]
[1727278425822,1.65088637,151.46,151.42,0.2441548]
[1727278426006,6.6037,151.43,151.42,0.2441548]
[1727278426422,6.6033,151.44,151.42,0.2441548]
[1727278427427,6.6037,151.43,151.42,0.2441548]
[1727278430406,8.25506564,151.43,151.42,0.2441548]
[1727278431528,6.6037,151.43,151.42,0.2441548]
[1727278431716,8.25526409,151.43,151.42,0.2441548]
[1727278432516,6.6058,151.38,151.37,0.4253606]
[1727278434514,23.776884,151.43,151.37,0.4253606]
[1727278434515,16.0488,151.43,151.37,0.4253606]
[1727278434724,6.6058,151.38,151.37,0.4253606]
[1727278436633,8.25776561,151.38,151.37,0.4253606]
[1727278436812,6.6058,151.38,151.37,0.4253606]
[1727278437506,6.6055,151.39,151.37,0.4253606]
[1727278438018,1.65159816,151.41,151.37,0.4253606]
[1727278438837,6.6055,151.39,151.37,0.4253606]
[1727278439013,16.0488,151.43,151.37,0.4253606]
[1727278439407,56.64188397,151.46,151.38,0.88144274]
[1727278439606,56.64188397,151.46,151.37,41.88686845]
[1727278439607,13.24438397,151.46,151.41,6.6044]
[1727278439812,1.65095609,151.45,151.39,18.84970785]
[1727278440001,1.65121655,151.44,151.37,25.37166845]
[1727278440206,6.6036,151.44,151.39,6.6053]
[1727278441534,6.6036,151.44,151.4,6.6049]
[1727278441735,6.6036,151.44,151.39,25.45500785]
[1727278442434,1.65100006,151.43,151.37,41.88726845]
[1727278442610,6.6046,151.41,151.37,25.37166845]
[1727278443011,6.6053,151.4,151.37,6.5219606]
[1727278443327,8.25678088,151.39,151.37,0.4253606]
[1727278443631,8.25727161,151.38,151.37,0.4253606]
[1727278443841,6.6058,151.38,151.37,0.4253606]
[1727278444049,1.65160469,151.41,151.37,0.4253606]
[1727278444331,6.6058,151.38,151.37,0.4253606]
[1727278447850,8.2575734,151.38,151.37,0.4253606]
[1727278448140,6.6058,151.38,151.37,0.4253606]
[1727278449227,21.6221,151.41,151.37,0.4253606]
[1727278449422,6.6056,151.39,151.37,0.4253606]
[1727278450155,6.6053,151.4,151.37,0.4253606]
[1727278450335,6.6058,151.38,151.37,0.4253606]
[1727278457434,6.6057,151.39,151.37,0.4253606]
[1727278457748,1.65160244,151.38,151.37,0.4253606]
[1727278457959,6.6058,151.38,151.37,0.4253606]
[1727278458961,8.25782131,151.38,151.37,0.4253606]
[1727278459554,16.5109,151.42,151.37,0.4253606]
[1727278459760,6.6058,151.38,151.37,0.4253606]
[1727278460747,28.8213,151.38,151.37,0.4253606]
[1727278460930,30.25093206,151.38,151.37,0.4253606]
[1727278462344,22.4625,151.38,151.37,0.4253606]
[1727278463640,22.4625,151.38,151.37,6.06e-05]
[1727278464176,24.11479618,151.38,151.37,6.06e-05]
[1727278466645,26.76432918,151.38,151.37,6.06e-05]
[1727278466846,90.22121318,151.38,151.37,6.06e-05]
[1727278467069,50.54121318,151.38,151.37,6.06e-05]
[1727278467259,26.76432918,151.38,151.37,6.06e-05]
[1727278468267,26.76443215,151.38,151.37,6.06e-05]
[1727278469368,24.11489915,151.38,151.37,6.06e-05]
[1727278472359,6.6058,151.38,151.37,6.06e-05]
[1727278472880,8.25801425,151.38,151.37,6.06e-05]
[1727278474759,6.65324214,151.39,151.37,6.06e-05]
[1727278474941,1.65165982,151.39,151.37,12.09683915]
[1727278475145,6.6058,151.38,151.37,6.06e-05]
[1727278475344,1.65165982,151.39,151.37,6.06e-05]
[1727278475548,6.6058,151.38,151.37,6.06e-05]
[1727278476749,56.6058,151.38,151.37,6.06e-05]
[1727278478147,58.25804674,151.38,151.37,6.06e-05]
[1727278479081,6.6058,151.38,151.37,6.06e-05]
[1727278479258,8.25799155,151.38,151.37,6.06e-05]
[1727278480779,6.6058,151.38,151.37,6.06e-05]
[1727278481375,8.25804986,151.38,151.37,6.06e-05]
[1727278482085,6.6058,151.38,151.37,6.06e-05]
[1727278482260,8.25806076,151.38,151.37,6.06e-05]
[1727278482462,71.71494476,151.38,151.37,6.06e-05]
[1727278483479,70.062684,151.38,151.37,6.06e-05]
[1727278483691,6.6058,151.38,151.37,6.06e-05]
[1727278483875,8.25838916,151.38,151.37,6.06e-05]
[1727278485785,6.6058,151.38,151.37,6.06e-05]
[1727278486185,32.03495215,151.38,151.37,6.06e-05]
[1727278490990,8.25806815,151.38,151.37,6.06e-05]
[1727278491503,8.25806815,151.38,151.34,0.09]
[1727278491504,45.7035,151.33,151.28,0.4253606]
[1727278491709,6.6098,151.29,151.28,0.4253606]
[1727278491878,51.65292439,151.33,151.28,0.4253606]
[1727278492081,6.6098,151.29,151.28,0.4253606]
[1727278495504,6.6089,151.31,151.28,0.4253606]
[1727278496416,1.42913425,151.3,151.28,0.4253606]
[1727278496585,8.03853425,151.3,151.28,0.4253606]
[1727278497010,1.65263232,151.29,151.28,0.4253606]
[1727278497205,6.6098,151.29,151.28,0.4253606]
[1727278497612,1.42886328,151.32,151.28,0.4253606]
[1727278497814,1.65260707,151.31,151.28,0.4253606]
[1727278498014,8.26160707,151.31,151.28,0.4253606]
[1727278498312,1.65253068,151.34,151.29,25.1816183]
[1727278498709,6.608,151.33,151.29,25.1816183]
[1727278499019,6.608,151.33,151.29,40.8225183]
[1727278499312,1.65253068,151.34,151.29,21.9212]
[1727278499514,6.6089,151.31,151.29,21.9212]
[1727278499817,6.6087,151.32,151.29,21.9212]
[1727278499997,1.42941867,151.35,151.29,21.9212]
[1727278500200,6.6076,151.34,151.31,18.9013183]
[1727278500596,1.65215851,151.33,151.31,18.9013183]
[1727278500795,6.6084,151.33,151.31,18.9013183]
[1727278501115,50.0,151.37,151.29,21.9212]
[1727278501321,6.6089,151.31,151.29,21.9212]
[1727278501694,6.6098,151.29,151.28,0.4253606]
[1727278502008,49.0951,151.34,151.28,0.4253606]
[1727278502009,50.0,151.34,151.28,0.4253606]
[1727278502214,51.65258239,151.34,151.28,0.4253606]
[1727278502521,6.6094,151.3,151.28,0.4253606]
[1727278503098,6.6076,151.34,151.29,25.5107183]
[1727278503297,6.6076,151.34,151.32,18.9013183]
[1727278503716,51.652144,151.38,151.29,6.6094]
[1727278503926,51.652144,151.38,151.29,18.9013183]
[1727278503927,6.6081,151.33,151.29,18.9013183]
[1727278504624,8.26099666,151.32,151.29,18.9013183]
[1727278504919,6.6085,151.32,151.29,18.9013183]
[1727278505420,16.5169,151.36,151.29,18.9013183]
[1727278505729,16.5139,151.39,151.31,18.9013183]
[1727278505946,6.6072,151.35,151.31,18.9013183]
[1727278506229,6.6063,151.37,151.33,18.9013183]
[1727278506429,6.608,151.33,151.32,6.3367]
[1727278506814,18.1693789,151.36,151.28,6.9715606]
[1727278507146,1.65225204,151.37,151.29,6.6097]
[1727278507338,1.65224924,151.38,151.29,6.6097]
[1727278507501,66.5138,151.39,151.29,6.6097]
[1727278507701,1.65211787,151.38,151.29,6.6097]
[1727278508516,6.6081,151.33,151.29,6.6097]
[1727278509046,6.6098,151.29,151.28,6.9715606]
[1727278509547,6.6094,151.3,151.28,6.9715606]
[1727278510338,6.609,151.31,151.28,6.9715606]
[1727278510507,6.6085,151.32,151.28,6.9715606]
[1727278510910,6.6093,151.3,151.28,6.9715606]
[1727278511113,16.519,151.35,151.28,6.9715606]
[1727278511414,33.0326,151.37,151.28,6.9715606]
[1727278511415,6.6098,151.29,151.28,6.9715606]
[1727278511615,6.6098,151.29,151.28,0.4253606]
[1727278512727,32.4791,151.35,151.28,0.4253606]
[1727278512936,1.65233956,151.34,151.28,0.4253606]
[1727278513105,6.6093,151.31,151.28,0.4253606]
[1727278513307,1.65245888,151.3,151.28,0.4253606]
[1727278513513,6.6098,151.29,151.28,0.4253606]
[1727278514938,6.6094,151.3,151.28,0.4253606]
[1727278515112,6.6093,151.31,151.28,0.4253606]
[1727278515313,6.6094,151.3,151.28,0.4253606]
[1727278515513,6.6089,151.31,151.28,0.4253606]
[1727278516139,18.17056998,151.35,151.28,0.4253606]
[1727278516344,6.6094,151.3,151.28,0.4253606]
[1727278516914,6.609,151.31,151.28,0.4253606]
[1727278517161,6.6098,151.29,151.28,0.4253606]
[1727278517342,1.65245725,151.3,151.28,0.4253606]
[1727278517511,6.6094,151.3,151.25,6.5368606]
[1727278517917,1.65256163,151.32,151.28,6.6102]
[1727278518141,8.26136163,151.32,151.27,23.1362]
[1727278518321,6.6088,151.32,151.27,23.1362]
[1727278518521,6.89671103,151.36,151.28,19.78534882]
[1727278518844,6.6076,151.34,151.29,6.6097]
[1727278519013,1.42944992,151.33,151.24,22.1645548]
[1727278519214,50.0,151.38,151.26,25.5120183]
[1727278519215,6.6089,151.31,151.26,25.5120183]
[1727278519617,6.6085,151.32,151.27,6.6106]
[1727278519919,1.65227159,151.34,151.26,18.9013183]
[1727278520123,1.65227138,151.37,151.27,16.5256]
[1727278521244,66.5147,151.38,151.29,6.6097]
[1727278521245,6.608,151.34,151.29,6.6097]
[1727278523254,8.2603074,151.33,151.28,25.5115183]
[1727278523544,1.65213046,151.37,151.28,18.9013183]
[1727278523757,6.6085,151.32,151.27,23.1361]
[1727278523932,6.609,151.31,151.27,16.5256]
[1727278524555,16.5147,151.38,151.27,16.5256]
[1727278524556,6.608,151.34,151.28,25.5112183]
[1727278524758,6.608,151.34,151.29,7.49307025]
[1727278525055,6.6063,151.37,151.33,6.608]
[1727278525234,6.6063,151.37,151.33,7.49057735]
[1727278525434,6.6063,151.37,151.33,6.608]
[1727278525643,6.6063,151.37,151.32,25.5097183]
[1727278526258,16.5118,151.41,151.32,18.9013183]
[1727278526436,6.6064,151.37,151.32,25.5096183]
[1727278526952,6.6068,151.36,151.32,25.5096183]
[1727278527169,6.6068,151.36,151.32,18.9013183]
[1727278528331,6.6068,151.36,151.32,25.5096183]
[1727278528534,0.2441548,151.4,151.34,18.9013183]
[1727278528836,0.2441548,151.4,151.36,18.9013183]
[1727278529038,6.8491548,151.4,151.36,25.5079183]
[1727278529237,0.2441548,151.4,151.37,6.6063]
[1727278530231,0.2441548,151.4,151.36,25.5079183]
[1727278531342,0.2441548,151.4,151.39,6.6054]
[1727278531960,0.2441548,151.4,151.38,18.9013183]
[1727278532259,0.2441548,151.4,151.39,46.700784]
[1727278532462,0.2441548,151.45,151.39,46.700784]
[1727278532463,0.2441548,151.45,151.43,25.5046183]
[1727278532663,0.2441548,151.45,151.42,23.114]
[1727278533030,0.2441548,151.45,151.42,16.51]
[1727278533549,0.2441548,151.45,151.42,23.114]
[1727278533771,16.5011,151.51,151.44,6.6032]
[1727278534058,0.2480152,151.45,151.44,6.6032]
[1727278534268,0.2480152,151.45,151.44,30.380084]
[1727278534443,0.2480152,151.45,151.44,36.513684]
[1727278535644,0.2480152,151.45,151.44,12.7368]
[1727278536457,0.2480152,151.45,151.44,36.513684]
[1727278536665,0.2480152,151.45,151.44,37.39268744]
[1727278537057,0.2480152,151.45,151.44,36.513684]
[1727278537255,0.2480152,151.45,151.44,12.7368]
[1727278537739,0.2480152,151.45,151.44,6.6032]
[1727278538058,0.2480152,151.45,151.44,30.380084]
[1727278540336,0.3520855,151.51,151.5,6.6006]
[1727278540542,0.3520855,151.51,151.5,7.47837521]
[1727278541145,0.3520855,151.51,151.5,6.6006]
[1727278541340,0.3520855,151.51,151.5,31.25497721]
[1727278541761,0.3520855,151.51,151.5,30.377484]
[1727278542064,0.3520855,151.51,151.5,6.6006]
[1727278542443,0.3520855,151.51,151.5,31.25498288]
[1727278543165,0.3520855,151.51,151.5,31.25478871]
[1727278543568,0.3520855,151.51,151.5,46.92068871]
[1727278544180,0.278696,151.56,151.54,16.4967]
[1727278544349,0.278696,151.56,151.55,42.6782023]
[1727278544854,0.278696,151.56,151.55,6.5984]
[1727278545054,0.278696,151.56,151.54,23.0955]
[1727278545262,0.278696,151.56,151.54,16.4967]
[1727278545949,0.278696,151.56,151.51,22.7233]
[1727278546170,6.5985,151.55,151.51,16.5001]
[1727278547275,6.5985,151.55,151.51,23.1003]
[1727278547451,6.5999,151.52,151.48,6.6014]
[1727278547776,6.5996,151.53,151.48,6.6014]
[1727278548774,1.43177195,151.55,151.48,6.6014]
[1727278548974,6.5998,151.52,151.48,6.6014]
[1727278549372,6.5998,151.52,151.47,29.6061]
[1727278549772,6.5998,151.52,151.47,23.0042]
[1727278550075,6.5998,151.52,151.48,6.6015]
[1727278551278,6.5994,151.53,151.48,6.6015]
[1727278551579,6.5998,151.52,151.48,6.6015]
[1727278552577,6.5998,151.52,151.47,23.1062]
[1727278552970,6.5998,151.52,151.48,6.6014]
[1727278553677,6.5998,151.52,151.47,23.1062]
[1727278553873,32.386596,151.56,151.45,18.9013183]
[1727278553874,1.64993683,151.54,151.45,6.6024]
[1727278554068,6.6011,151.49,151.45,6.6024]
[1727278554269,6.6011,151.49,151.43,6.6034]
[1727278554270,6.6019,151.47,151.43,6.6034]
[1727278554771,18.24683229,151.49,151.41,16.511]
[1727278554979,6.6035,151.44,151.39,28.4565]
[1727278555179,18.24683229,151.49,151.4,6.6049]
[1727278555370,16.5042,151.48,151.4,6.6049]
[1727278555556,6.6032,151.44,151.4,6.6049]
[1727278556180,6.6029,151.45,151.4,6.6049]
[1727278556678,6.6035,151.44,151.4,6.6049]
[1727278556866,6.6037,151.43,151.39,6.6053]
[1727278557181,16.5042,151.48,151.39,6.6052]
[1727278557378,6.6034,151.44,151.4,0.88046772]
[1727278557551,6.6034,151.44,151.4,6.6049]
[1727278558082,6.6034,151.44,151.39,6.6051]
[1727278558276,6.6034,151.44,151.4,6.6049]
[1727278558961,16.5042,151.48,151.39,18.9013183]
[1727278559161,6.6025,151.46,151.41,7.48453129]
[1727278559580,6.6025,151.46,151.42,6.6041]
[1727278559783,16.5963,151.49,151.44,6.6032]
[1727278559966,6.6019,151.48,151.43,23.1127]
[1727278560295,6.602,151.47,151.43,23.1127]
[1727278560665,6.6016,151.48,151.43,16.5091]
[1727278560869,6.6021,151.47,151.43,16.5091]
[1727278561186,1.65054847,151.47,151.4,16.5118]
[1727278561377,6.6025,151.46,151.42,6.604]
[1727278561688,6.6019,151.47,151.43,7.48361537]
[1727278561993,16.5963,151.49,151.44,0.87967672]
[1727278562225,50.0,151.55,151.44,23.776884]
[1727278562226,6.6007,151.5,151.44,23.776884]
[1727278562365,6.6011,151.49,151.45,6.6027]
[1727278563467,16.0368,151.53,151.45,35.4080183]
[1727278563667,6.6003,151.51,151.47,6.6019]
[1727278563986,16.0368,151.53,151.45,35.4080183]
[1727278564286,16.0368,151.53,151.5,6.6006]
[1727278564471,22.6362,151.53,151.48,7.47926518]
[1727278564895,16.0368,151.53,151.51,6.6001]
[1727278565189,16.0368,151.53,151.45,18.9013183]
[1727278565490,1.64993822,151.52,151.44,23.1104]
[1727278565691,6.6023,151.47,151.42,23.776884]
[1727278565879,1.65042468,151.52,151.45,6.6028]
[1727278566082,1.65042468,151.52,151.43,18.9013183]
[1727278566281,6.6003,151.51,151.46,6.6022]
[1727278566792,6.6003,151.51,151.47,6.6019]
[1727278566975,1.43151199,151.52,151.45,23.109]
[1727278566976,6.6009,151.5,151.45,23.109]
[1727278567392,8.25158256,151.49,151.45,16.5065]
[1727278567598,6.6015,151.48,151.45,16.5065]
[1727278567799,6.6012,151.49,151.45,16.5065]
[1727278568484,6.6012,151.49,151.45,23.1093]
[1727278569385,6.6007,151.5,151.46,6.6023]
[1727278569594,6.6003,151.51,151.46,6.6023]
[1727278569774,6.6003,151.51,151.47,6.6018]
[1727278569976,6.5998,151.52,151.48,6.6015]
[1727278570304,16.0368,151.53,151.47,35.4056183]
[1727278570509,22.6362,151.53,151.49,6.6009]
[1727278571101,16.0368,151.53,151.49,18.9013183]
[1727278571307,6.876796,151.56,151.51,23.1001]
[1727278571791,6.5986,151.55,151.51,23.1001]
[1727278572172,6.876796,151.56,151.51,23.0999]
[1727278572400,6.5985,151.55,151.51,23.0999]
[1727278572897,0.278696,151.56,151.51,16.5]
[1727278573078,0.278696,151.56,151.51,23.776884]
[1727278573276,0.278696,151.56,151.54,6.5988]
[1727278573691,0.278696,151.56,151.46,33.0113]
[1727278573985,0.278696,151.56,151.5,16.501]
[1727278574184,0.278696,151.56,151.53,6.5991]
[1727278574392,0.278696,151.56,151.52,16.499]
[1727278574783,0.278696,151.56,151.54,6.5988]
[1727278575191,0.278696,151.56,151.55,6.5984]
[1727278575707,0.278696,151.56,151.53,23.776884]
[1727278575882,0.278696,151.56,151.55,6.5984]
[1727278576211,0.278696,151.56,151.55,30.375284]
[1727278578087,2.0,151.6,151.59,6.5967]
[1727278578284,2.0,151.6,151.59,7.47184368]
[1727278578509,2.0,151.6,151.59,6.5967]
[1727278579706,2.0,151.6,151.59,7.47186112]
[1727278580481,2.0,151.6,151.59,50.373584]
[1727278582095,2.0,151.6,151.59,30.373584]
[1727278582402,2.0,151.6,151.59,36.864184]
[1727278582714,2.0,151.6,151.59,31.24867056]
[1727278582892,2.0,151.6,151.59,30.373584]
[1727278584109,2.0,151.6,151.59,31.24846593]
[1727278584299,2.0,151.6,151.59,30.373584]
[1727278584693,2.0,151.6,151.59,6.5967]
[1727278585416,2.0,151.6,151.55,16.4958]
[1727278585911,2.0,151.6,151.58,6.5971]
[1727278586717,2.0,151.6,151.57,23.0909]
[1727278586898,2.0,151.6,151.57,16.4935]
[1727278587299,2.0,151.6,151.57,23.0909]
[1727278587502,2.0,151.6,151.58,6.5971]
[1727278588722,2.0,151.6,151.57,16.4935]
[1727278588891,2.0,151.6,151.59,6.5967]
[1727278601424,2.0,151.6,151.59,31.24854648]
[1727278602397,2.0,151.6,151.59,30.373584]
[1727278603016,0.3953538,151.61,151.59,43.776884]
[1727278603231,0.2698375,151.64,151.63,6.595]
[1727278603410,0.2698375,151.64,151.63,26.2997253]
[1727278603813,0.2698375,151.64,151.63,25.42573053]
[1727278604027,0.2698375,151.64,151.63,6.595]
[1727278606306,0.2698375,151.64,151.62,23.0832]
[1727278607527,0.2698375,151.64,151.63,7.46973978]
[1727278608825,0.2698375,151.64,151.63,6.595]
[1727278609125,0.2698375,151.64,151.63,30.371884]
[1727278610000,0.2698375,151.64,151.63,49.20261453]
[1727278610218,0.2698375,151.64,151.63,50.07664548]
[1727278610405,0.2698375,151.64,151.63,49.20261453]
[1727278611303,0.2698375,151.64,151.63,50.07649358]
[1727278611525,0.2698375,151.64,151.63,49.20261453]
[1727278612026,0.2698375,151.64,151.63,50.07618378]
[1727278612333,15.6082433,151.7,151.67,16.482]
[1727278612537,15.6082433,151.7,151.67,35.31273053]
[1727278613628,15.6082433,151.7,151.68,6.5928]
[1727278614226,15.6082433,151.7,151.67,23.0751]
[1727278615122,22.2004433,151.7,151.66,6.5936]
[1727278615333,22.2004433,151.7,151.67,0.87381493]
[1727278615507,22.2004433,151.7,151.66,6.5936]
[1727278615812,15.6082433,151.7,151.63,6.5946]
[1727278616122,6.5935,151.67,151.63,6.5946]
[1727278616306,6.5929,151.68,151.63,6.5946]
[1727278616506,6.5937,151.66,151.62,6.5954]
[1727278616727,6.5934,151.67,151.63,6.5949]
[1727278619333,15.6082433,151.7,151.63,23.776884]
[1727278619623,15.6082433,151.7,151.61,23.776884]
[1727278619624,15.6082433,151.7,151.67,6.5931]
[1727278620220,22.2001433,151.7,151.66,6.5935]
[1727278620529,1.64801225,151.69,151.62,35.31853053]
[1727278620825,1.64801225,151.69,151.62,23.0831]
[1727278621124,6.5933,151.67,151.63,6.5948]
[1727278622829,6.5929,151.68,151.62,16.4878]
[1727278623027,6.5927,151.69,151.64,6.5942]
[1727278623238,6.5927,151.69,151.65,6.5938]
[1727278623805,22.2002433,151.7,151.66,6.5935]
[1727278624620,1.64805829,151.69,151.62,18.83073053]
[1727278624909,6.5935,151.67,151.63,6.5949]
[1727278625719,6.5929,151.68,151.63,6.5949]
[1727278626026,6.5929,151.68,151.64,6.5944]
[1727278626416,15.6082433,151.7,151.63,16.4868]
[1727278626732,15.6082433,151.7,151.62,18.83073053]
[1727278626733,22.2002433,151.7,151.66,6.5935]
[1727278626928,15.6082433,151.7,151.67,16.4827]
[1727278627739,15.6082433,151.7,151.67,23.0758]
[1727278627909,15.6082433,151.7,151.64,16.4856]